fUST/lending_fUST_20250102
["ID","MTS","AMOUNT","RATE_DAILY","PERIOD"]
[347387614,1735755049739,-208.056846,0.00019178,2]
[347387615,1735755049750,-162.765594,0.00019178,2]
[347387616,1735755049760,-208.056846,0.00019178,2]
[347387617,1735755049769,-208.056846,0.00019178,2]
[347387618,1735755049779,-208.056846,0.00019178,2]
[347387619,1735755049788,-208.056846,0.00019178,2]
[347387620,1735755049798,-208.056846,0.00019178,2]
[347387621,1735755049808,-208.056846,0.00019178,2]
[347387622,1735755049818,-208.056846,0.00019178,2]
[347387623,1735755049827,-208.056846,0.00019178,2]
[347387624,1735755049837,-208.056846,0.00019178,2]
[347387625,1735755049848,-151.0,0.00019178,2]
[347387626,1735755049858,-208.056846,0.00019178,2]
[347387627,1735755049867,-151.0,0.00019178,2]
[347387628,1735755049876,-151.0,0.00019178,2]
[347387629,1735755049886,-151.0,0.00019178,2]
[347387630,1735755049895,-500.0,0.00019178,2]
[347387631,1735755049905,-151.0,0.00019178,2]
[347387632,1735755049915,-500.82931552,0.00019178,2]
[347387633,1735755049925,-500.0,0.00019178,2]
[347387634,1735755049935,-500.0,0.00019178,2]
[347387635,1735755049945,-500.0,0.00019178,2]
[347387636,1735755049956,-172.86261087,0.00019178,2]
[347387637,1735755049967,-500.0,0.00019178,2]
[347387638,1735755049976,-500.0,0.00019178,2]
[347387639,1735755049986,-500.0,0.00019178,2]
[347387640,1735755049996,-558.73,0.00019178,2]
[347387641,1735755050006,-1575.73,0.00019178,2]
[347387642,1735755050015,-151.0,0.00019178,2]
[347387643,1735755050025,-151.0,0.00019178,2]
[347387644,1735755050034,-151.0,0.00019178,2]
[347387645,1735755050044,-151.0,0.00019178,2]
[347387646,1735755050054,-500.0,0.00019178,2]
[347387647,1735755050063,-153.293108,0.00019178,2]
[347387648,1735755050072,-512.16635962,0.00019178,2]
[347387649,1735755050082,-425.84574528,0.00019178,2]
[347387650,1735755050091,-500.0,0.00019178,2]
[347387651,1735755050102,-500.0,0.00019178,2]
[347387652,1735755050111,-500.0,0.00019178,2]
[347387653,1735755050122,-500.0,0.00019178,2]
[347387654,1735755050131,-505.07602194,0.00019178,2]
[347387655,1735755050141,-1064.99299549,0.00019178,2]
[347387656,1735755050232,-54.26700451,0.00019178,2]
[347387657,1735755050242,-500.0,0.00019178,2]
[347387658,1735755050252,-77.39299554,0.00019178,2]
[347387659,1735755081106,-266.98,0.00022,31]
[347387660,1735755081136,-266.98,0.00022,31]
[347387661,1735755081166,-266.98,0.00022,31]
[347387662,1735755081196,-266.98,0.00022,31]
[347387663,1735755081228,-266.98,0.00022,31]
[347387664,1735755081258,-266.98,0.00022,31]
[347387665,1735755081292,-266.98,0.00022,31]
[347387666,1735755081322,-266.98,0.00022,31]
[347387667,1735755081352,-266.98,0.00022,31]
[347387668,1735755081382,-266.98,0.00022,31]
[347387669,1735755081410,-266.98,0.00022,31]
[347387670,1735755081439,-266.98,0.00022,31]
[347387671,1735755081471,-266.98,0.00022,31]
[347387672,1735755081499,-266.98,0.00022,31]
[347387673,1735755081527,-266.98,0.00022,31]
[347387674,1735755081556,-266.98,0.00022,31]
[347387675,1735755081598,-523.33,0.000225,60]
[347387676,1735755081623,-392.49,0.000225,60]
[347387677,1735755081648,-294.37,0.000225,60]
[347387678,1735755081672,-220.78,0.000225,60]
[347387679,1735755081696,-662.32,0.000225,60]
[347387680,1735755081724,-697.92,0.000225,60]
[347387681,1735755081750,-231477.08237594,0.0002251,30]
[347387682,1735755081775,-10000.0,0.00022528,60]
[347387683,1735755081805,-10000.0,0.00022528,60]
[347387684,1735755081831,-10000.0,0.00022578,60]
[347387685,1735755081856,-10000.0,0.00022578,60]
[347387686,1735755081881,-621460.02762406,0.0002258,60]
[347387687,1735755085529,-42753.22352827,0.0002258,60]
[347387688,1735755085554,-5300.0,0.00022585,60]
[347387689,1735755085586,-309.0,0.00022759,60]
[347387690,1735755085633,-266.98,0.000232,31]
[347387691,1735755085667,-266.98,0.000232,31]
[347387692,1735755085697,-266.98,0.000232,31]
[347387693,1735755085727,-266.98,0.000232,31]
[347387694,1735755085756,-266.98,0.000232,31]
[347387695,1735755085784,-266.98,0.000232,31]
[347387696,1735755085813,-266.98,0.000232,31]
[347387697,1735755085841,-266.98,0.000232,31]
[347387698,1735755085871,-266.98,0.000232,31]
[347387699,1735755085899,-266.98,0.000232,31]
[347387700,1735755085929,-266.98,0.000232,31]
[347387701,1735755085958,-266.98,0.000232,31]
[347387702,1735755085987,-266.98,0.000232,31]
[347387703,1735755086016,-266.98,0.000232,31]
[347387704,1735755086045,-266.98,0.000232,31]
[347387705,1735755086073,-266.98,0.000232,31]
[347387706,1735755086102,-266.98,0.000232,31]
[347387707,1735755086130,-266.98,0.000232,31]
[347387708,1735755086158,-266.98,0.000232,31]
[347387709,1735755086188,-266.98,0.000232,31]
[347387710,1735755086216,-266.98,0.000232,31]
[347387711,1735755086244,-266.98,0.000232,31]
[347387712,1735755086272,-266.98,0.000232,31]
[347387713,1735755086300,-266.98,0.000232,31]
[347387714,1735755086341,-897.60410929,0.00024,60]
[347387715,1735755086375,-266.98,0.000243,31]
[347387716,1735755086403,-266.98,0.000243,31]
[347387717,1735755086430,-266.98,0.000243,31]
[347387718,1735755086460,-266.98,0.000243,31]
[347387719,1735755086487,-266.98,0.000243,31]
[347387720,1735755086515,-266.98,0.000243,31]
[347387721,1735755086544,-266.98,0.000243,31]
[347387722,1735755086576,-266.98,0.000243,31]
[347387723,1735755086604,-266.98,0.000243,31]
[347387724,1735755086631,-266.98,0.000243,31]
[347387725,1735755086659,-266.98,0.000243,31]
[347387726,1735755086688,-266.98,0.000243,31]
[347387727,1735755086716,-266.98,0.000243,31]
[347387728,1735755086744,-266.98,0.000243,31]
[347387729,1735755086771,-266.98,0.000243,31]
[347387730,1735755086799,-266.98,0.000243,31]
[347387731,1735755086827,-266.98,0.000243,31]
[347387732,1735755086855,-266.98,0.000243,31]
[347387733,1735755086883,-266.98,0.000243,31]
[347387734,1735755086911,-266.98,0.000243,31]
[347387735,1735755086941,-266.98,0.000243,31]
[347387736,1735755086969,-266.98,0.000243,31]
[347387737,1735755086998,-266.98,0.000243,31]
[347387738,1735755087030,-266.98,0.000243,31]
[347387739,1735755087059,-835.8761605,0.000245,45]
[347387740,1735755087094,-1000.5,0.00025,31]
[347387741,1735755087117,-500.5,0.00025,31]
[347387742,1735755087142,-198.9,0.00025,31]
[347387743,1735755087168,-470.0,0.00025,30]
[347387744,1735755087193,-2500.0,0.00025,60]
[347387745,1735755087217,-106384.70032873,0.00025,30]
[347387746,1735755087242,-6116.7173243,0.00025,30]
[347387747,1735755087282,-266.98,0.000255,31]
[347387748,1735755087311,-266.98,0.000255,31]
[347387749,1735755087339,-266.98,0.000255,31]
[347387750,1735755087368,-266.98,0.000255,31]
[347387751,1735755087395,-266.98,0.000255,31]
[347387752,1735755087550,-266.98,0.000255,31]
[347387753,1735755087582,-266.98,0.000255,31]
[347387754,1735755087611,-266.98,0.000255,31]
[347387755,1735755087639,-266.98,0.000255,31]
[347387756,1735755087670,-266.98,0.000255,31]
[347387757,1735755087703,-266.98,0.000255,31]
[347387758,1735755087733,-266.98,0.000255,31]
[347387759,1735755087765,-266.98,0.000255,31]
[347387760,1735755087794,-266.98,0.000255,31]
[347387761,1735755087823,-266.98,0.000255,31]
[347387762,1735755087852,-266.98,0.000255,31]
[347387763,1735755087881,-266.98,0.000255,31]
[347387764,1735755087910,-266.98,0.000255,31]
[347387765,1735755087940,-266.98,0.000255,31]
[347387766,1735755087970,-266.98,0.000255,31]
[347387767,1735755088000,-266.98,0.000255,31]
[347387768,1735755088030,-266.98,0.000255,31]
[347387769,1735755088061,-266.98,0.000255,31]
[347387770,1735755088091,-266.98,0.000255,31]
[347387771,1735755088116,-500.0,0.00025997,30]
[347387772,1735755088142,-500.0,0.00025997,30]
[347387773,1735755088168,-500.0,0.00025997,30]
[347387774,1735755088193,-500.0,0.00025997,30]
[347387775,1735755088218,-500.0,0.00025997,30]
[347387776,1735755088243,-500.0,0.00025997,30]
[347387777,1735755088268,-500.0,0.00025997,30]
[347387778,1735755088293,-500.0,0.00025997,30]
[347387779,1735755088317,-500.0,0.00025997,30]
[347387780,1735755088341,-500.0,0.00025997,30]
[347387781,1735755088366,-957.52209949,0.00025997,30]
[347387782,1735755088390,-500.0,0.00025997,30]
[347387783,1735755088415,-500.0,0.00025997,30]
[347387784,1735755088439,-500.0,0.00025997,30]
[347387785,1735755088464,-500.0,0.00025997,30]
[347387786,1735755088489,-514.6771808,0.00025997,30]
[347387787,1735755088514,-700.0,0.00025997,30]
[347387788,1735755088538,-700.0,0.00025997,30]
[347387789,1735755088563,-700.0,0.00025997,30]
[347387790,1735755088591,-700.0,0.00025997,30]
[347387791,1735755088616,-700.0,0.00025997,30]
[347387792,1735755088641,-700.0,0.00025997,30]
[347387793,1735755088665,-700.0,0.00025997,30]
[347387794,1735755088688,-700.0,0.00025997,30]
[347387795,1735755088712,-700.0,0.00025997,30]
[347387796,1735755088736,-700.0,0.00025997,30]
[347387797,1735755088759,-700.0,0.00025997,30]
[347387798,1735755088782,-700.0,0.00025997,30]
[347387799,1735755088806,-926.4920571,0.00025997,30]
[347387800,1735755088831,-9149.69422022,0.00026,30]
[347387801,1735755088855,-455.82266737,0.000261,60]
[347387802,1735755088884,-266.98,0.000266,31]
[347387803,1735755088912,-266.98,0.000266,31]
[347387804,1735755088942,-266.98,0.000266,31]
[347387805,1735755088971,-266.98,0.000266,31]
[347387806,1735755089000,-266.98,0.000266,31]
[347387807,1735755089027,-266.98,0.000266,31]
[347387808,1735755089055,-266.98,0.000266,31]
[347387809,1735755089084,-266.98,0.000266,31]
[347387810,1735755089112,-266.98,0.000266,31]
[347387811,1735755089140,-266.98,0.000266,31]
[347387812,1735755089169,-266.98,0.000266,31]
[347387813,1735755089197,-266.98,0.000266,31]
[347387814,1735755089222,-1114.71739418,0.0002661,30]
[347387815,1735755089248,-3833.0053542,0.00027,60]
[347387816,1735755089273,-25386.0,0.0002721,30]
[347387817,1735755089298,-400.0,0.00027397,60]
[347387818,1735755089324,-1346.122815,0.00027397,120]
[347387819,1735755089350,-436.85,0.0002779,120]
[347387820,1735755089374,-3818.38,0.00027799,30]
[347387821,1735755089399,-4427.24,0.00028,30]
[347387822,1735755089424,-3842.4189648,0.00028,60]
[347387823,1735755089449,-59830.07903784,0.00028095,30]
[347387824,1735755089474,-1590.26,0.000285,30]
[347387825,1735755089503,-436.816,0.0002899,120]
[347387826,1735755089527,-3393.10757405,0.00028992,120]
[347387827,1735755089552,-500.0,0.00028992,30]
[347387828,1735755089580,-500.0,0.00028992,30]
[347387829,1735755089605,-500.0,0.00028992,30]
[347387830,1735755089630,-570.89960903,0.00028992,30]
[347387831,1735755089656,-438.38,0.00029,120]
[347387832,1735755089680,-200.0,0.00029,120]
[347387833,1735755089704,-389.64178454,0.00029,120]
[347387834,1735755089731,-5906.16699601,0.00029025,60]
[347387835,1735755089755,-150.5,0.0002919,120]
[347387836,1735755089782,-150.5,0.000292,120]
[347387837,1735755089807,-150.5,0.0002921,120]
[347387838,1735755089833,-150.5,0.0002921,120]
[347387839,1735755089859,-150.5,0.0002922,120]
[347387840,1735755089884,-150.5,0.0002923,120]
[347387841,1735755089908,-150.5,0.0002923,120]
[347387842,1735755089933,-150.5,0.0002923,120]
[347387843,1735755089958,-2621.0,0.0002927,120]
[347387844,1735755089984,-2621.0,0.0002927,120]
[347387845,1735755090009,-177.09,0.0002928,120]
[347387846,1735755090172,-150.71,0.0002928,120]
[347387847,1735755090198,-2621.0,0.0002928,120]
[347387848,1735755090224,-2621.0,0.0002928,120]
[347387849,1735755090250,-2621.0,0.0002928,120]
[347387850,1735755090275,-2621.86,0.0002928,120]
[347387851,1735755090300,-166.72,0.0002929,120]
[347387852,1735755090325,-2621.0,0.0002929,120]
[347387853,1735755090350,-2621.0,0.0002929,120]
[347387854,1735755090374,-2621.0,0.0002929,120]
[347387855,1735755090399,-2621.0,0.0002929,120]
[347387856,1735755090424,-25386.0,0.00029387,60]
[347387857,1735755090448,-361.19115,0.000294,120]
[347387858,1735755090473,-42608.53409618,0.00029484,120]
[347387859,1735755090499,-177.14094723,0.000299,120]
[347387860,1735755090525,-151.0,0.0003,120]
[347387861,1735755090549,-151.0,0.0003,120]
[347387862,1735755090576,-431.175279,0.0003,120]
[347387863,1735755090602,-350.29177519,0.0003,30]
[347387864,1735755090628,-555.12589626,0.0003,30]
[347387865,1735755090657,-1000.0,0.0003,120]
[347387866,1735755090683,-400.0,0.0003,120]
[347387867,1735755090708,-5000.0,0.0003,30]
[347387868,1735755090734,-386.0,0.0003,60]
[347387869,1735755090759,-1198.4717,0.0003,30]
[347387870,1735755090785,-200.0,0.0003,120]
[347387871,1735755090811,-4427.24,0.0003,30]
[347387872,1735755090836,-400.0,0.00030137,60]
[347387873,1735755090863,-436.812,0.0003019,120]
[347387874,1735755090888,-500.0,0.00030397,30]
[347387875,1735755090913,-500.0,0.00030397,30]
[347387876,1735755090941,-500.0,0.00030397,30]
[347387877,1735755090967,-500.0,0.00030397,30]
[347387878,1735755090993,-500.0,0.00030397,30]
[347387879,1735755091021,-500.0,0.00030397,30]
[347387880,1735755091047,-500.0,0.00030397,30]
[347387881,1735755091072,-500.0,0.00030397,30]
[347387882,1735755091097,-500.0,0.00030397,30]
[347387883,1735755091123,-500.0,0.00030397,30]
[347387884,1735755091148,-500.0,0.00030397,30]
[347387885,1735755091174,-500.0,0.00030397,30]
[347387886,1735755091200,-700.0,0.00030397,30]
[347387887,1735755091224,-500.98444405,0.00030397,30]
[347387888,1735755091251,-500.0,0.00030397,30]
[347387889,1735755091275,-700.0,0.00030397,30]
[347387890,1735755091300,-500.0,0.00030397,30]
[347387891,1735755091326,-700.0,0.00030397,30]
[347387892,1735755091351,-500.0,0.00030397,30]
[347387893,1735755091375,-700.0,0.00030397,30]
[347387894,1735755091400,-500.0,0.00030397,30]
[347387895,1735755091425,-700.0,0.00030397,30]
[347387896,1735755091451,-700.0,0.00030397,30]
[347387897,1735755091476,-500.0,0.00030397,30]
[347387898,1735755091501,-502.62414233,0.00030397,30]
[347387899,1735755091525,-190.0,0.00030397,30]
[347387900,1735755091552,-700.0,0.00030397,30]
[347387901,1735755091578,-501.86404515,0.00030397,30]
[347387902,1735755091603,-700.0,0.00030397,30]
[347387903,1735755091629,-700.0,0.00030397,30]
[347387904,1735755091655,-700.0,0.00030397,30]
[347387905,1735755091679,-700.0,0.00030397,30]
[347387906,1735755091703,-700.0,0.00030397,30]
[347387907,1735755091727,-499.3,0.00030397,30]
[347387908,1735755091754,-700.0,0.00030397,30]
[347387909,1735755091778,-500.0,0.00030397,30]
[347387910,1735755091803,-502.08962667,0.00030397,30]
[347387911,1735755091827,-249.08732692,0.00030397,30]
[347387912,1735755091853,-163.93528746,0.00030397,30]
[347387913,1735755091877,-499.3,0.00030397,30]
[347387914,1735755091901,-361.19115,0.000306,120]
[347387915,1735755091927,-500.0,0.00031,120]
[347387916,1735755091952,-5906.16699601,0.00031025,60]
[347387917,1735755091976,-151.0,0.00031151,120]
[347387918,1735755092002,-151.0,0.00031315,120]
[347387919,1735755092027,-436.876,0.0003139,120]
[347387920,1735755092052,-25386.0,0.00031737,120]
[347387921,1735755092076,-361.19115,0.000318,120]
[347387922,1735755092101,-1346.122815,0.00031963,120]
[347387923,1735755092126,-1000.0,0.00032,120]
[347387924,1735755092150,-1590.26,0.00032,30]
[347387925,1735755092175,-151.0,0.00032301,120]
[347387926,1735755092200,-632.331,0.000325,120]
[347387927,1735755092225,-632.332,0.000325,120]
[347387928,1735755092251,-632.331,0.000325,120]
[347387929,1735755092276,-632.332,0.000325,120]
[347387930,1735755092300,-632.331,0.000325,120]
[347387931,1735755092326,-436.876,0.0003259,120]
[347387932,1735755092351,-151.0,0.0003263,120]
[347387933,1735755092376,-1020.69440239,0.00032876,30]
[347387934,1735755092401,-400.0,0.00032877,60]
[347387935,1735755092425,-327.12642,0.000329,120]
[347387936,1735755092450,-361.19115,0.00033,120]
[347387937,1735755092611,-387604.46399444,0.00033015,60]
[347387938,1735755098593,-226.83,0.0002929,120]
[347387939,1735755098626,-899773.17,0.00033015,60]
[347387940,1735755103070,-15872.34777633,0.00033015,60]
[347387941,1735755103095,-5906.16699601,0.00033025,60]
[347387942,1735755103120,-151.0,0.00033452,120]
[347387943,1735755103146,-436.803,0.0003379,120]
[347387944,1735755103171,-151.0,0.00033945,120]
[347387945,1735755103197,-1000.0,0.00034,120]
[347387946,1735755103222,-394.591557,0.00034,30]
[347387947,1735755103248,-361.19115,0.000342,120]
[347387948,1735755103274,-40016.49904923,0.000342,86]
[347387949,1735755103300,-40016.49904921,0.000342,86]
[347387950,1735755103325,-40016.49904921,0.000342,86]
[347387951,1735755103350,-40016.49904921,0.000342,86]
[347387952,1735755103378,-40016.49904921,0.000342,86]
[347387953,1735755103403,-220830.12148677,0.00034248,120]
[347387954,1735755103428,-151.0,0.00034603,120]
[347387955,1735755103455,-436.851,0.0003499,120]
[347387956,1735755103479,-1000.0,0.00034999,120]
[347387957,1735755103505,-150.0,0.00035,69]
[347387958,1735755103529,-1079.64040283,0.00035,120]
[347387959,1735755103555,-200.0,0.00035,120]
[347387960,1735755103582,-4013.41579544,0.00035,120]
[347387961,1735755103607,-11214.0,0.00035,120]
[347387962,1735755103632,-2000.0,0.00035,30]
[347387963,1735755103660,-19078.7207,0.00035,120]
[347387964,1735755103686,-5090.0,0.00035,30]
[347387965,1735755103711,-889.09270415,0.00035,120]
[347387966,1735755103735,-3173.36159317,0.00035,120]
[347387967,1735755103759,-2334.0,0.00035,120]
[347387968,1735755103783,-5906.16699601,0.00035025,60]
[347387969,1735755103808,-200.0,0.000352,120]
[347387970,1735755103832,-151.0,0.0003526,120]
[347387971,1735755103857,-361.19115,0.000354,120]
[347387972,1735755103883,-200.0,0.000354,120]
[347387973,1735755103908,-800.0,0.000354,120]
[347387974,1735755103933,-200.0,0.000356,120]
[347387975,1735755103960,-417.91213758,0.00035616,60]
[347387976,1735755103988,-151.0,0.00035753,120]
[347387977,1735755104013,-200.0,0.000358,120]
[347387978,1735755104038,-361.34805612,0.00036,120]
[347387979,1735755104063,-281.05714,0.00036,120]
[347387980,1735755104089,-700.0,0.00036,120]
[347387981,1735755104113,-500.0,0.00036,120]
[347387982,1735755104139,-524.7265081,0.00036,120]
[347387983,1735755104163,-250.0,0.00036,30]
[347387984,1735755104189,-436.875,0.0003619,120]
[347387985,1735755104214,-30852.38135785,0.00036484,120]
[347387986,1735755104240,-1346.122815,0.0003653,120]
[347387987,1735755104265,-151.0,0.00036575,120]
[347387988,1735755104289,-361.19116,0.000366,120]
[347387989,1735755104314,-151.0,0.00036904,120]
[347387990,1735755104338,-10028.7567027,0.0003699,120]
[347387991,1735755104363,-5906.16699601,0.00037025,60]
[347387992,1735755104389,-436.869,0.0003739,120]
[347387993,1735755104415,-791.0,0.000376,120]
[347387994,1735755104440,-342338.43557286,0.000377,120]
[347387995,1735755107600,-1666.60295614,0.000377,120]
[347387996,1735755107628,-151.0,0.0003789,120]
[347387997,1735755107653,-198.82174736,0.00037913,80]
[347387998,1735755107677,-202.73889821,0.00038,30]
[347387999,1735755107703,-700.0,0.00038,120]
[347388000,1735755107727,-250.0,0.00038,30]
[347388001,1735755107753,-151.0,0.00038055,120]
[347388002,1735755107777,-400.0,0.00038356,60]
[347388003,1735755107803,-300.0,0.000384,120]
[347388004,1735755107830,-436.829,0.0003859,120]
[347388005,1735755107855,-293.08886879,0.0003889,60]
[347388006,1735755107880,-4034.0,0.00039,120]
[347388007,1735755107906,-300.0,0.00039,120]
[347388008,1735755107932,-1996.0,0.00039,120]
[347388009,1735755107957,-5906.16599601,0.00039025,60]
[347388010,1735755107982,-151.0,0.00039205,120]
[347388011,1735755108008,-151.0,0.00039205,120]
[347388012,1735755108035,-858.1,0.00039723,120]
[347388013,1735755108061,-436.877,0.0003979,120]
[347388014,1735755108086,-4998.86969188,0.0004,30]
[347388015,1735755108111,-84667.27199812,0.0004,30]
[347388016,1735755108137,-1289.10716397,0.0004,60]
[347388017,1735755108165,-60315.84495061,0.0004,60]
[347388018,1735755108190,-120000.0,0.0004,30]
[347388019,1735755108214,-226.1916438,0.0004,120]
[347388020,1735755108241,-200.0,0.0004,120]
[347388021,1735755108266,-6079.0,0.0004,30]
[347388022,1735755108291,-500.0,0.0004,60]
[347388023,1735755108316,-200.0,0.0004,120]
[347388024,1735755108342,-200.0,0.0004,120]
[347388025,1735755108368,-250.0,0.0004,30]
[347388026,1735755108393,-151.0,0.00040356,120]
[347388027,1735755108418,-151.0,0.00040521,120]
[347388028,1735755108445,-300.0,0.0004084,120]
[347388029,1735755108473,-436.858,0.0004099,120]
[347388030,1735755108499,-601451.63208511,0.00041,30]
[347388031,1735755112784,-3541.79,0.00029,30]
[347388032,1735755112815,-3541.79,0.000312,30]
[347388033,1735755112844,-3541.79,0.00034,30]
[347388034,1735755112871,-889374.63,0.00041,30]
[347388035,1735755178276,1659.20478469,0.00027397,120]
[347388052,1735755209664,135.62563531,0.00027397,120]
[347388053,1735755214351,361.19115,0.000271,120]
[347388054,1735755214892,3875.17476604,0.00025,120]
[347388055,1735755246512,500.0,0.00022997,120]
[347388467,1735755398079,364.37436469,0.00015022,14]
[347388473,1735755409852,800.0,0.00024,120]
[347388785,1735755441310,1000.0,0.00025,120]
[347388787,1735755478925,538.0,0.00025,120]
[347388895,1735756114215,289.54992702,0.00023305,90]
[347388897,1735756114320,-165.823889,0.00013973,2]
[347388899,1735756114347,-903.65691478,0.00016,2]
[347388900,1735756114383,-629.90521392,0.00016,2]
[347388901,1735756114829,-1069.48080378,0.00016,2]
[347388909,1735756118395,318.549999,0.00023305,120]
[347388919,1735756121294,3978.59845225,0.0002,120]
[347388922,1735756121880,200.0,0.00025,120]
[347388936,1735756139209,-1124.85814021,0.00016,2]
[347388937,1735756139257,-1124.85814021,0.00016,2]
[347388938,1735756139317,-946.91137427,0.00016,2]
[347388939,1735756164409,-1188.79069331,0.00016,2]
[347388940,1735756164469,-1188.79069331,0.00016,2]
[347388941,1735756189250,-361.13077784,0.00015682,2]
[347388942,1735756189277,-500.0,0.0001584,2]
[347388943,1735756189305,-357.98892764,0.00016,2]
[347388944,1735756189341,-283.51396584,0.00016,2]
[347388994,1735756232292,-449.04670057,0.0001584,2]
[347388996,1735756232303,-467.35124465,0.00016,2]
[347388998,1735756232311,-196.28302925,0.0001689,2]
[347389000,1735756232320,-589.769545,0.00016992,2]
[347389002,1735756232329,-250.0,0.00017712,2]
[347389004,1735756232338,-1905.6206038,0.00017749,2]
[347389006,1735756232348,-300.0,0.00017999,2]
[347389007,1735756232357,-499.999999,0.00018,2]
[347389009,1735756232366,-88741.28844359,0.00018,2]
[347389026,1735756232507,-7801.32022816,0.00018,2]
[347389253,1735756238250,-4341.97992171,0.00018,2]
[347389255,1735756238260,-419.698,0.0001822,2]
[347389257,1735756238270,-534.0,0.00018344,2]
[347389259,1735756238280,-2103.0,0.00018344,2]
[347389261,1735756238290,-2377.0,0.00018344,2]
[347389263,1735756238300,-394.0,0.00018344,2]
[347389266,1735756238310,-160.76508088,0.000185,2]
[347389268,1735756238319,-863.80301181,0.000188,2]
[347389270,1735756238331,-11147.77643832,0.000188,2]
[347389272,1735756238340,-600.0,0.00018937,2]
[347389274,1735756238350,-269.1671789,0.00018986,2]
[347389276,1735756238360,-256.63205048,0.00019,2]
[347389277,1735756238369,-2425.83675659,0.00019,2]
[347389279,1735756238379,-256.63205046,0.0001902,2]
[347389281,1735756238388,-256.63205046,0.00019039,2]
[347389283,1735756238398,-256.63205046,0.00019059,2]
[347389284,1735756238407,-178.22,0.00019068,2]
[347389286,1735756238416,-178.22,0.00019068,2]
[347389288,1735756238427,-167.20237132,0.00019077,2]
[347389289,1735756238437,-500.0,0.00019077,2]
[347389291,1735756238446,-500.0,0.00019077,2]
[347389293,1735756238456,-226.79118771,0.00019077,2]
[347389294,1735756238465,-500.0,0.00019077,2]
[347389296,1735756238477,-500.0,0.00019077,2]
[347389298,1735756238487,-185.57689144,0.00019077,2]
[347389300,1735756238496,-97259.93,0.00019078,4]
[347389302,1735756238506,-256.63205046,0.00019078,2]
[347389303,1735756238515,-5164.75756255,0.0001908,2]
[347389305,1735756238525,-325.0,0.000191,8]
[347389307,1735756238534,-1141.19122446,0.00019134,2]
[347389309,1735756238543,-500.0,0.00019173,2]
[347389310,1735756238553,-500.0,0.00019173,2]
[347389312,1735756238562,-500.71805977,0.00019173,2]
[347389314,1735756238571,-500.0,0.00019173,2]
[347389315,1735756238580,-500.0,0.00019177,2]
[347389317,1735756238590,-500.0,0.00019178,2]
[347389319,1735756238599,-151.0,0.00019178,2]
[347389320,1735756238608,-151.0,0.00019178,2]
[347389322,1735756238617,-151.0,0.00019178,2]
[347389324,1735756238627,-151.0,0.00019178,2]
[347389325,1735756238635,-151.0,0.00019178,2]
[347389327,1735756238645,-151.0,0.00019178,2]
[347389329,1735756238654,-151.0,0.00019178,2]